[Event "*** SCC Grand Prix: Titled Tuesday Blitz"]
[Site "Chess.com"]
[Date "2020.07.14"]
[Round "6"]
[White "kassablanca"]
[Black "Sanyura"]
[Result "0-1"]
[WhiteElo "2615"]
[BlackElo "2484"]
[TimeControl "180+1"]
[EndTime "11:08:23 PDT"]
[Termination "Sanyura won by checkmate"]

1. d4 {[%clk 0:03:00.9]} 1... Nf6 {[%clk 0:02:51]} 2. Nf3 {[%clk 0:02:59.5]}
2... g6 {[%clk 0:02:50.8]} 3. g3 {[%clk 0:02:59]} 3... Bg7 {[%clk 0:02:51.4]} 4.
Bg2 {[%clk 0:02:59.4]} 4... O-O {[%clk 0:02:52.1]} 5. O-O {[%clk 0:02:59.4]}
5... d6 {[%clk 0:02:52.7]} 6. a4 {[%clk 0:02:59.4]} 6... Nbd7 {[%clk 0:02:53.3]}
7. a5 {[%clk 0:02:59.3]} 7... e5 {[%clk 0:02:54]} 8. dxe5 {[%clk 0:02:54.2]}
8... dxe5 {[%clk 0:02:54.9]} 9. a6 {[%clk 0:02:54.2]} 9... c6 {[%clk 0:02:50.3]}
10. axb7 {[%clk 0:02:52.8]} 10... Bxb7 {[%clk 0:02:51.2]} 11. Nc3 {[%clk
0:02:51.2]} 11... c5 {[%clk 0:02:38.9]} 12. Nd2 {[%clk 0:02:41.8]} 12... Bxg2
{[%clk 0:02:36.9]} 13. Kxg2 {[%clk 0:02:42.7]} 13... Qb6 {[%clk 0:02:36.9]} 14.
Nc4 {[%clk 0:02:38.3]} 14... Qb7+ {[%clk 0:02:36.8]} 15. Kg1 {[%clk 0:02:35.6]}
15... Rfd8 {[%clk 0:02:29.7]} 16. Qe1 {[%clk 0:02:25.6]} 16... h6 {[%clk
0:02:00.5]} 17. Be3 {[%clk 0:02:16.7]} 17... Ng4 {[%clk 0:01:59.8]} 18. Qc1
{[%clk 0:02:11.1]} 18... Nb6 {[%clk 0:01:27.4]} 19. Na5 {[%clk 0:02:06.5]} 19...
Qc8 {[%clk 0:01:23]} 20. Kg2 {[%clk 0:01:48.9]} 20... Kh7 {[%clk 0:01:14.3]} 21.
h3 {[%clk 0:01:40.6]} 21... Nf6 {[%clk 0:00:54.7]} 22. Rd1 {[%clk 0:01:38.3]}
22... Nfd5 {[%clk 0:00:49.5]} 23. Nxd5 {[%clk 0:01:31.6]} 23... Nxd5 {[%clk
0:00:50.4]} 24. Bd2 {[%clk 0:01:07.7]} 24... Qf5 {[%clk 0:00:39.9]} 25. Ra4
{[%clk 0:00:50.4]} 25... Nb6 {[%clk 0:00:35.4]} 26. Ra3 {[%clk 0:00:47.5]} 26...
Qe4+ {[%clk 0:00:33.8]} 27. f3 {[%clk 0:00:44.1]} 27... Qxe2+ {[%clk 0:00:33.4]}
28. Kg1 {[%clk 0:00:44.2]} 28... e4 {[%clk 0:00:28.2]} 29. fxe4 {[%clk
0:00:29.2]} 29... Bd4+ {[%clk 0:00:27.2]} 30. Kh1 {[%clk 0:00:29.5]} 30... Qxe4+
{[%clk 0:00:27.1]} 31. Kh2 {[%clk 0:00:28.6]} 31... Qe2+ {[%clk 0:00:13.7]} 32.
Kh1 {[%clk 0:00:28.8]} 32... Be5 {[%clk 0:00:14]} 33. Re1 {[%clk 0:00:24.7]}
33... Qxd2 {[%clk 0:00:12.1]} 34. Qxd2 {[%clk 0:00:25.3]} 34... Rxd2 {[%clk
0:00:12.6]} 35. Rxe5 {[%clk 0:00:25.9]} 35... Rxc2 {[%clk 0:00:12.7]} 36. Rf3
{[%clk 0:00:25.1]} 36... f5 {[%clk 0:00:12.7]} 37. Re7+ {[%clk 0:00:25]} 37...
Kg8 {[%clk 0:00:12.7]} 38. g4 {[%clk 0:00:25.4]} 38... Rd8 {[%clk 0:00:12.8]}
39. Rf1 {[%clk 0:00:25.5]} 39... Rdd2 {[%clk 0:00:12.4]} 40. Rfe1 {[%clk
0:00:22.6]} 40... f4 {[%clk 0:00:12.7]} 41. Nc6 {[%clk 0:00:18.6]} 41... Rh2+
{[%clk 0:00:09.4]} 42. Kg1 {[%clk 0:00:18.9]} 42... Rcg2+ {[%clk 0:00:10.1]} 43.
Kf1 {[%clk 0:00:19.2]} 43... f3 {[%clk 0:00:10.4]} 44. Re8+ {[%clk 0:00:19.1]}
44... Kf7 {[%clk 0:00:10.9]} 45. R1e7+ {[%clk 0:00:18.3]} 45... Kf6 {[%clk
0:00:11.3]} 46. Rf8+ {[%clk 0:00:17.1]} 46... Kg5 {[%clk 0:00:11.7]} 47. Re5+
{[%clk 0:00:16.7]} 47... Kh4 {[%clk 0:00:11.5]} 48. Rxf3 {[%clk 0:00:17.3]}
48... Rxb2 {[%clk 0:00:11.2]} 49. Kg1 {[%clk 0:00:16.5]} 49... Rhg2+ {[%clk
0:00:11.6]} 50. Kf1 {[%clk 0:00:16.5]} 50... Rgc2 {[%clk 0:00:12.3]} 51. Re1
{[%clk 0:00:16]} 51... Rh2 {[%clk 0:00:12.1]} 52. Kg1 {[%clk 0:00:13.3]} 52...
Rbg2+ {[%clk 0:00:12.7]} 53. Kf1 {[%clk 0:00:13.7]} 53... Rg3 {[%clk 0:00:13.6]}
54. Rf2 {[%clk 0:00:12.5]} 54... Rh1+ {[%clk 0:00:13.4]} 55. Ke2 {[%clk
0:00:12.2]} 55... Rxe1+ {[%clk 0:00:14.1]} 56. Kxe1 {[%clk 0:00:13.1]} 56...
Rxh3 {[%clk 0:00:14.6]} 57. Ke2 {[%clk 0:00:11.8]} 57... Kxg4 {[%clk 0:00:14.7]}
58. Ne5+ {[%clk 0:00:10.9]} 58... Kh5 {[%clk 0:00:15.3]} 59. Nd3 {[%clk
0:00:09.4]} 59... g5 {[%clk 0:00:15]} 60. Nxc5 {[%clk 0:00:08.8]} 60... Nd5
{[%clk 0:00:15.4]} 61. Nd7 {[%clk 0:00:05.4]} 61... Nc3+ {[%clk 0:00:15.3]} 62.
Kf1 {[%clk 0:00:03.8]} 62... Ne4 {[%clk 0:00:16.2]} 63. Rf7 {[%clk 0:00:02]}
63... Rh1+ {[%clk 0:00:15.4]} 64. Kg2 {[%clk 0:00:02.4]} 64... Re1 {[%clk
0:00:15.1]} 65. Rf3 {[%clk 0:00:02.7]} 65... Re2+ {[%clk 0:00:14.8]} 66. Kg1
{[%clk 0:00:03]} 66... Kg4 {[%clk 0:00:14.6]} 67. Rf8 {[%clk 0:00:02.7]} 67...
Ng3 {[%clk 0:00:13.2]} 68. Nf6+ {[%clk 0:00:02.3]} 68... Kh3 {[%clk 0:00:13.4]}
69. Nd5 {[%clk 0:00:01.4]} 69... Rg2# {[%clk 0:00:14.3]} 0-1

[Event "*** SCC Grand Prix: Titled Tuesday Blitz"]
[Site "Chess.com"]
[Date "2020.07.14"]
[Round "6"]
[White "Ucitelot"]
[Black "korkmaz16"]
[Result "1-0"]
[WhiteElo "2508"]
[BlackElo "2325"]
[TimeControl "180+1"]
[EndTime "11:08:24 PDT"]
[Termination "Ucitelot won by resignation"]

1. c4 {[%clk 0:03:00.9]} 1... c6 {[%clk 0:02:58]} 2. g3 {[%clk 0:02:59.7]} 2...
d5 {[%clk 0:02:57.2]} 3. Bg2 {[%clk 0:03:00]} 3... Nf6 {[%clk 0:02:57.4]} 4. Nf3
{[%clk 0:02:59.7]} 4... g6 {[%clk 0:02:56.5]} 5. b3 {[%clk 0:02:59.4]} 5... Bg7
{[%clk 0:02:56.7]} 6. Bb2 {[%clk 0:02:59.7]} 6... O-O {[%clk 0:02:56.9]} 7. O-O
{[%clk 0:02:59.4]} 7... Bf5 {[%clk 0:02:55.9]} 8. d3 {[%clk 0:02:59.2]} 8... Re8
{[%clk 0:02:53]} 9. Nbd2 {[%clk 0:02:57.4]} 9... a5 {[%clk 0:02:26.8]} 10. a3
{[%clk 0:02:56.3]} 10... Qb6 {[%clk 0:02:25.7]} 11. Rc1 {[%clk 0:02:54.1]} 11...
Nbd7 {[%clk 0:02:23.8]} 12. cxd5 {[%clk 0:02:48.5]} 12... cxd5 {[%clk
0:02:19.4]} 13. Qc2 {[%clk 0:02:47.7]} 13... e5 {[%clk 0:02:08.3]} 14. Qc7
{[%clk 0:02:46.7]} 14... Qa6 {[%clk 0:01:35.5]} 15. Nxe5 {[%clk 0:02:14.7]}
15... Nxe5 {[%clk 0:01:33.9]} 16. Bxe5 {[%clk 0:02:14.1]} 16... Rac8 {[%clk
0:01:23.1]} 17. Qd6 {[%clk 0:02:13.6]} 17... Qxd6 {[%clk 0:01:14.1]} 18. Bxd6
{[%clk 0:02:10.3]} 18... Rxe2 {[%clk 0:01:09.8]} 19. Rxc8+ {[%clk 0:02:09.3]}
19... Bxc8 {[%clk 0:01:10.3]} 20. Nf3 {[%clk 0:02:00]} 20... Bf5 {[%clk
0:01:07.2]} 21. Nd4 {[%clk 0:01:59.1]} 21... Rb2 {[%clk 0:01:01.4]} 22. Nxf5
{[%clk 0:01:58.8]} 22... gxf5 {[%clk 0:01:01.3]} 23. Rc1 {[%clk 0:01:58.5]}
23... h6 {[%clk 0:00:59]} 24. Bh3 {[%clk 0:01:50.5]} 24... Ng4 {[%clk
0:00:57.5]} 25. Rc8+ {[%clk 0:01:32.6]} 25... Kh7 {[%clk 0:00:57.3]} 26. Bxg4
{[%clk 0:01:32.9]} 26... fxg4 {[%clk 0:00:57.1]} 27. Rc7 {[%clk 0:01:31.5]}
27... Rxb3 {[%clk 0:00:56]} 28. Rxf7 {[%clk 0:01:31]} 28... Kg6 {[%clk
0:00:56.6]} 29. Rf4 {[%clk 0:01:28]} 29... h5 {[%clk 0:00:56.4]} 30. Kg2 {[%clk
0:01:17.1]} 30... Rxd3 {[%clk 0:00:55.7]} 31. h3 {[%clk 0:01:13]} 31... gxh3+
{[%clk 0:00:55.1]} 32. Kxh3 {[%clk 0:01:12.8]} 32... Rd4 {[%clk 0:00:40.2]} 33.
Rf3 {[%clk 0:01:11.1]} 33... Rc4 {[%clk 0:00:30.6]} 34. Rb3 {[%clk 0:01:10.1]}
34... Rc6 {[%clk 0:00:30.7]} 35. Bf4 {[%clk 0:00:58.5]} 35... b6 {[%clk
0:00:30.2]} 36. Kg2 {[%clk 0:00:54.3]} 36... Kf5 {[%clk 0:00:29.9]} 37. Rb5
{[%clk 0:00:52.7]} 37... Ke6 {[%clk 0:00:30.1]} 38. Be3 {[%clk 0:00:51.8]} 38...
d4 {[%clk 0:00:30]} 39. Bf4 {[%clk 0:00:51.7]} 39... d3 {[%clk 0:00:28.7]} 40.
Rxh5 {[%clk 0:00:50.9]} 40... Rc2 {[%clk 0:00:26.2]} 41. Be3 {[%clk 0:00:43.3]}
41... Bd4 {[%clk 0:00:24.6]} 42. Kf3 {[%clk 0:00:32.9]} 42... d2 {[%clk
0:00:24.4]} 43. Rh1 {[%clk 0:00:29.5]} 43... Bxe3 {[%clk 0:00:21.8]} 44. Kxe3
{[%clk 0:00:29.3]} 44... Rc1 {[%clk 0:00:22.7]} 45. Rh6+ {[%clk 0:00:28.8]}
45... Kd5 {[%clk 0:00:20.8]} 46. Kxd2 {[%clk 0:00:29.7]} 46... Ra1 {[%clk
0:00:21.1]} 47. Rxb6 {[%clk 0:00:28.9]} 47... Rxa3 {[%clk 0:00:21.1]} 48. Ke2
{[%clk 0:00:27]} 48... a4 {[%clk 0:00:20.6]} 49. g4 {[%clk 0:00:26.3]} 49...
Ra2+ {[%clk 0:00:21.2]} 50. Kf3 {[%clk 0:00:26.1]} 50... Ra1 {[%clk 0:00:21.8]}
51. g5 {[%clk 0:00:25]} 51... a3 {[%clk 0:00:22.2]} 52. Ra6 {[%clk 0:00:24.9]}
52... a2 {[%clk 0:00:21.5]} 53. Kf4 {[%clk 0:00:25.1]} 53... Kc5 {[%clk
0:00:20.6]} 54. Kf5 {[%clk 0:00:24.2]} 54... Kb5 {[%clk 0:00:20.2]} 55. Ra8
{[%clk 0:00:23.9]} 55... Kb4 {[%clk 0:00:19.5]} 56. g6 {[%clk 0:00:22.9]} 56...
Kb3 {[%clk 0:00:19.3]} 57. f4 {[%clk 0:00:21.9]} 57... Rg1 {[%clk 0:00:19]} 58.
Kf6 {[%clk 0:00:20.3]} 58... a1=Q+ {[%clk 0:00:19.1]} 59. Rxa1 {[%clk
0:00:19.7]} 59... Rxa1 {[%clk 0:00:20]} 60. g7 {[%clk 0:00:20.1]} 60... Ra8
{[%clk 0:00:19.9]} 61. f5 {[%clk 0:00:17.8]} 61... Kc4 {[%clk 0:00:20.2]} 62.
Kg6 {[%clk 0:00:18.1]} 62... Kd5 {[%clk 0:00:20.4]} 63. f6 {[%clk 0:00:18.5]}
63... Ke6 {[%clk 0:00:20.7]} 64. f7 {[%clk 0:00:18.7]} 64... Ke7 {[%clk
0:00:18.8]} 65. g8=Q {[%clk 0:00:17.4]} 65... Ra6+ {[%clk 0:00:18.3]} 66. Kg7
{[%clk 0:00:17.4]} 1-0

[Event "*** SCC Grand Prix: Titled Tuesday Blitz"]
[Site "Chess.com"]
[Date "2020.07.14"]
[Round "6"]
[White "Stosk"]
[Black "aloe_normansen"]
[Result "0-1"]
[WhiteElo "2311"]
[BlackElo "2226"]
[TimeControl "180+1"]
[EndTime "11:08:24 PDT"]
[Termination "aloe_normansen won by resignation"]

1. e4 {[%clk 0:03:00.9]} 1... c5 {[%clk 0:02:59.6]} 2. Nf3 {[%clk 0:02:57.2]}
2... d6 {[%clk 0:02:59.5]} 3. d4 {[%clk 0:02:57.6]} 3... cxd4 {[%clk 0:02:59.4]}
4. Nxd4 {[%clk 0:02:58.2]} 4... Nf6 {[%clk 0:02:59.7]} 5. Nc3 {[%clk 0:02:58.5]}
5... a6 {[%clk 0:03:00]} 6. Bg5 {[%clk 0:02:58.5]} 6... e6 {[%clk 0:02:59.8]} 7.
Qd2 {[%clk 0:02:58.5]} 7... h6 {[%clk 0:02:53.7]} 8. Bh4 {[%clk 0:02:55.9]} 8...
Be7 {[%clk 0:02:39.1]} 9. Bg3 {[%clk 0:02:48.3]} 9... b5 {[%clk 0:02:37.3]} 10.
f3 {[%clk 0:02:45.8]} 10... Bb7 {[%clk 0:02:20.8]} 11. O-O-O {[%clk 0:02:42.3]}
11... Nbd7 {[%clk 0:02:13.2]} 12. h4 {[%clk 0:02:27.3]} 12... b4 {[%clk
0:02:05.7]} 13. Na4 {[%clk 0:02:24.7]} 13... d5 {[%clk 0:01:44.6]} 14. e5 {[%clk
0:02:20.4]} 14... Nh5 {[%clk 0:01:30.3]} 15. Bh2 {[%clk 0:02:20.3]} 15... Bxh4
{[%clk 0:00:57.1]} 16. Kb1 {[%clk 0:02:11.6]} 16... Bg3 {[%clk 0:00:38.4]} 17.
f4 {[%clk 0:02:01.6]} 17... Bxh2 {[%clk 0:00:37]} 18. Rxh2 {[%clk 0:02:01.7]}
18... Ng3 {[%clk 0:00:37.5]} 19. Bd3 {[%clk 0:01:58.9]} 19... Qa5 {[%clk
0:00:35.4]} 20. b3 {[%clk 0:01:58.7]} 20... O-O-O {[%clk 0:00:34.7]} 21. Qe3
{[%clk 0:01:49.3]} 21... Ne4 {[%clk 0:00:32.3]} 22. Bxe4 {[%clk 0:01:41.3]}
22... dxe4 {[%clk 0:00:33.2]} 23. g4 {[%clk 0:01:23.5]} 23... Nc5 {[%clk
0:00:32.8]} 24. Nxc5 {[%clk 0:01:17.6]} 24... Qxc5 {[%clk 0:00:33.7]} 25. Rhd2
{[%clk 0:01:17.5]} 25... Rd7 {[%clk 0:00:33]} 26. c3 {[%clk 0:01:00.6]} 26...
bxc3 {[%clk 0:00:19]} 27. Rc1 {[%clk 0:00:39.2]} 27... Kb8 {[%clk 0:00:16.1]}
28. Rxc3 {[%clk 0:00:37.3]} 28... Qb4 {[%clk 0:00:15.1]} 29. Rc4 {[%clk
0:00:30]} 29... Qa5 {[%clk 0:00:14.4]} 30. Rdc2 {[%clk 0:00:25.9]} 30... Rhd8
{[%clk 0:00:13.4]} 31. Nc6+ {[%clk 0:00:23]} 31... Bxc6 {[%clk 0:00:13.1]} 32.
Rxc6 {[%clk 0:00:23.5]} 32... Rd1+ {[%clk 0:00:09.3]} 33. Kb2 {[%clk 0:00:23.8]}
33... Kb7 {[%clk 0:00:07.6]} 34. R6c5 {[%clk 0:00:18.6]} 34... Qb6 {[%clk
0:00:06.9]} 35. Qxe4+ {[%clk 0:00:18]} 35... Kb8 {[%clk 0:00:05.4]} 36. Qc4
{[%clk 0:00:15.5]} 36... R1d2 {[%clk 0:00:02.6]} 37. Rc8+ {[%clk 0:00:11.8]}
37... Kb7 {[%clk 0:00:02]} 38. Rxd8 {[%clk 0:00:09.8]} 38... Rxd8 {[%clk
0:00:01.5]} 39. a4 {[%clk 0:00:08.1]} 39... Rd7 {[%clk 0:00:01.8]} 40. a5 {[%clk
0:00:07.1]} 40... Qd4+ {[%clk 0:00:02.1]} 41. Qxd4 {[%clk 0:00:06.4]} 41... Rxd4
{[%clk 0:00:03]} 42. Rc4 {[%clk 0:00:06.9]} 42... Rxc4 {[%clk 0:00:02.8]} 43.
bxc4 {[%clk 0:00:06.9]} 43... Kc6 {[%clk 0:00:03.3]} 44. Kc3 {[%clk 0:00:06.8]}
44... Kc5 {[%clk 0:00:03.7]} 45. f5 {[%clk 0:00:05.8]} 45... g6 {[%clk
0:00:03.6]} 46. fxe6 {[%clk 0:00:02.6]} 46... fxe6 {[%clk 0:00:03.6]} 47. Kd3
{[%clk 0:00:02.5]} 47... h5 {[%clk 0:00:03.9]} 48. gxh5 {[%clk 0:00:01.9]} 48...
gxh5 {[%clk 0:00:04.8]} 49. Ke4 {[%clk 0:00:01.7]} 49... Kxc4 {[%clk 0:00:04.4]}
50. Kf4 {[%clk 0:00:02.2]} 50... Kd5 {[%clk 0:00:04.1]} 51. Kg5 {[%clk
0:00:02.8]} 51... Kxe5 {[%clk 0:00:04.6]} 52. Kxh5 {[%clk 0:00:03.7]} 52... Kd4
{[%clk 0:00:04.9]} 53. Kg4 {[%clk 0:00:04.4]} 53... e5 {[%clk 0:00:05.3]} 54.
Kf3 {[%clk 0:00:05]} 54... Kd3 {[%clk 0:00:05.6]} 55. Kf2 {[%clk 0:00:05.1]}
55... e4 {[%clk 0:00:05.7]} 56. Ke1 {[%clk 0:00:05.4]} 56... Ke3 {[%clk
0:00:06.2]} 57. Kd1 {[%clk 0:00:05]} 57... Kf2 {[%clk 0:00:06.5]} 58. Kd2 {[%clk
0:00:04.9]} 58... e3+ {[%clk 0:00:07]} 0-1

[Event "*** SCC Grand Prix: Titled Tuesday Blitz"]
[Site "Chess.com"]
[Date "2020.07.14"]
[Round "6"]
[White "Msb2"]
[Black "Rish_97"]
[Result "1-0"]
[WhiteElo "2888"]
[BlackElo "2684"]
[TimeControl "180+1"]
[EndTime "11:08:25 PDT"]
[Termination "Msb2 won by resignation"]

1. d4 {[%clk 0:03:00.9]} 1... Nf6 {[%clk 0:02:59.6]} 2. c4 {[%clk 0:02:58]} 2...
e6 {[%clk 0:02:59.7]} 3. Nc3 {[%clk 0:02:57]} 3... Bb4 {[%clk 0:02:59.2]} 4. e3
{[%clk 0:02:57.5]} 4... O-O {[%clk 0:02:55.8]} 5. Bd2 {[%clk 0:02:57.7]} 5... d5
{[%clk 0:02:54.7]} 6. Nf3 {[%clk 0:02:56.8]} 6... b6 {[%clk 0:02:52]} 7. cxd5
{[%clk 0:02:56.8]} 7... exd5 {[%clk 0:02:48]} 8. Bd3 {[%clk 0:02:57.2]} 8... Ba6
{[%clk 0:02:38.3]} 9. Bxa6 {[%clk 0:02:55.3]} 9... Nxa6 {[%clk 0:02:36.1]} 10.
O-O {[%clk 0:02:56]} 10... Re8 {[%clk 0:02:23.4]} 11. Ne5 {[%clk 0:02:53.5]}
11... Bf8 {[%clk 0:02:08.4]} 12. f4 {[%clk 0:02:48.6]} 12... c5 {[%clk
0:02:04.2]} 13. Be1 {[%clk 0:02:48.9]} 13... cxd4 {[%clk 0:01:59.5]} 14. exd4
{[%clk 0:02:49.8]} 14... Ne4 {[%clk 0:01:56.3]} 15. Qb3 {[%clk 0:02:44.6]} 15...
Nxc3 {[%clk 0:01:48.1]} 16. bxc3 {[%clk 0:02:45.5]} 16... f6 {[%clk 0:01:26.5]}
17. Nd3 {[%clk 0:02:45]} 17... Re3 {[%clk 0:01:17.1]} 18. Rd1 {[%clk 0:02:43.9]}
18... Qd7 {[%clk 0:01:13.8]} 19. f5 {[%clk 0:02:43.7]} 19... Nc7 {[%clk
0:01:11.8]} 20. Bg3 {[%clk 0:02:39.3]} 20... Bd6 {[%clk 0:01:08]} 21. Nf4 {[%clk
0:02:04.5]} 21... Qxf5 {[%clk 0:00:38.9]} 22. Nh5 {[%clk 0:01:52.8]} 22... Qe6
{[%clk 0:00:27.2]} 23. Nf4 {[%clk 0:01:18.4]} 23... Qf7 {[%clk 0:00:26.5]} 24.
Qc2 {[%clk 0:00:35.7]} 24... Rae8 {[%clk 0:00:24.3]} 25. Qf5 {[%clk 0:00:36.1]}
25... Rxc3 {[%clk 0:00:17.8]} 26. Qg4 {[%clk 0:00:31]} 26... Rc4 {[%clk
0:00:12.6]} 27. Nh5 {[%clk 0:00:30.9]} 27... Be7 {[%clk 0:00:10.1]} 28. Rde1
{[%clk 0:00:27.9]} 28... Kh8 {[%clk 0:00:08.1]} 29. Bxc7 {[%clk 0:00:17.8]}
29... Rxc7 {[%clk 0:00:09]} 30. Nf4 {[%clk 0:00:18.3]} 30... Bd6 {[%clk
0:00:05.5]} 31. Rxe8+ {[%clk 0:00:17.4]} 31... Qxe8 {[%clk 0:00:06.4]} 32. Nxd5
{[%clk 0:00:18.3]} 32... Rd7 {[%clk 0:00:06.9]} 33. Qf3 {[%clk 0:00:16.3]} 33...
Bf8 {[%clk 0:00:06.4]} 34. h3 {[%clk 0:00:11.7]} 34... Qd8 {[%clk 0:00:06.7]}
35. Nf4 {[%clk 0:00:12]} 35... Rxd4 {[%clk 0:00:06.5]} 36. Ne6 {[%clk
0:00:12.5]} 36... Qd5 {[%clk 0:00:05.1]} 37. Nxd4 {[%clk 0:00:12.5]} 37... Qxd4+
{[%clk 0:00:06]} 38. Qf2 {[%clk 0:00:13]} 38... Bc5 {[%clk 0:00:05.2]} 39. Qxd4
{[%clk 0:00:13.2]} 39... Bxd4+ {[%clk 0:00:06.1]} 40. Kh2 {[%clk 0:00:14]} 40...
Kg8 {[%clk 0:00:06.6]} 41. Rd1 {[%clk 0:00:13.9]} 41... Be5+ {[%clk 0:00:07.5]}
42. Kg1 {[%clk 0:00:13.7]} 42... h5 {[%clk 0:00:07.5]} 43. Rd7 {[%clk
0:00:12.6]} 43... a5 {[%clk 0:00:07.3]} 44. a4 {[%clk 0:00:12.9]} 44... Kh7
{[%clk 0:00:05.8]} 45. Kf2 {[%clk 0:00:13.1]} 45... Kg6 {[%clk 0:00:06.2]} 46.
Kf3 {[%clk 0:00:12.5]} 46... Kf5 {[%clk 0:00:04.4]} 47. Rxg7 {[%clk 0:00:12]}
47... Bd4 {[%clk 0:00:04.9]} 48. Rb7 {[%clk 0:00:11.8]} 48... Ke5 {[%clk
0:00:04.7]} 49. Rh7 {[%clk 0:00:12.2]} 49... Kd5 {[%clk 0:00:04.3]} 50. Rxh5+
{[%clk 0:00:12.6]} 50... Kc4 {[%clk 0:00:05.2]} 51. Rb5 {[%clk 0:00:12.8]} 51...
Bc5 {[%clk 0:00:04.4]} 52. h4 {[%clk 0:00:13.3]} 52... Kd5 {[%clk 0:00:05]} 53.
h5 {[%clk 0:00:13.1]} 53... Ke6 {[%clk 0:00:05.5]} 54. g4 {[%clk 0:00:12.4]}
54... f5 {[%clk 0:00:05]} 55. Kf4 {[%clk 0:00:10.3]} 55... fxg4 {[%clk
0:00:04.9]} 56. Kxg4 {[%clk 0:00:11.2]} 56... Kf6 {[%clk 0:00:05.2]} 57. Rb1
{[%clk 0:00:11.2]} 57... Kg7 {[%clk 0:00:05.4]} 58. Rd1 {[%clk 0:00:09.6]} 58...
Kf6 {[%clk 0:00:05.1]} 59. Rf1+ {[%clk 0:00:09.1]} 59... Kg7 {[%clk 0:00:05.1]}
60. Re1 {[%clk 0:00:09.6]} 60... Kf6 {[%clk 0:00:05.4]} 61. Re2 {[%clk 0:00:10]}
61... Kg7 {[%clk 0:00:05.7]} 62. Kg5 {[%clk 0:00:10.4]} 62... Kf7 {[%clk
0:00:05.7]} 63. h6 {[%clk 0:00:10.4]} 63... Kg8 {[%clk 0:00:06]} 64. Kg6 {[%clk
0:00:10.8]} 1-0

[Event "*** SCC Grand Prix: Titled Tuesday Blitz"]
[Site "Chess.com"]
[Date "2020.07.14"]
[Round "6"]
[White "Xeniya2005"]
[Black "Munkhzul_Turmunkh"]
[Result "1/2-1/2"]
[WhiteElo "2390"]
[BlackElo "2545"]
[TimeControl "180+1"]
[EndTime "11:08:25 PDT"]
[Termination "Game drawn by repetition"]

1. e4 {[%clk 0:03:00.9]} 1... c5 {[%clk 0:02:58.5]} 2. Be2 {[%clk 0:03:00.2]}
2... e5 {[%clk 0:02:54.3]} 3. Nc3 {[%clk 0:02:56.2]} 3... Nc6 {[%clk 0:02:53.6]}
4. d3 {[%clk 0:02:55.8]} 4... Be7 {[%clk 0:02:52.3]} 5. f4 {[%clk 0:02:51.7]}
5... d6 {[%clk 0:02:51.8]} 6. Nf3 {[%clk 0:02:51.4]} 6... Nf6 {[%clk 0:02:50.6]}
7. O-O {[%clk 0:02:49.1]} 7... O-O {[%clk 0:02:49.5]} 8. f5 {[%clk 0:02:37.7]}
8... d5 {[%clk 0:02:48.9]} 9. Bg5 {[%clk 0:02:17]} 9... dxe4 {[%clk 0:02:18]}
10. dxe4 {[%clk 0:01:58.3]} 10... b6 {[%clk 0:02:13.3]} 11. Bxf6 {[%clk
0:01:53.5]} 11... Bxf6 {[%clk 0:02:12.2]} 12. Nd5 {[%clk 0:01:52.5]} 12... Bb7
{[%clk 0:02:12.1]} 13. c3 {[%clk 0:01:48.4]} 13... Qd6 {[%clk 0:02:02.5]} 14.
Qc2 {[%clk 0:01:40.9]} 14... Ne7 {[%clk 0:01:58.6]} 15. Nxe7+ {[%clk 0:01:14]}
15... Qxe7 {[%clk 0:01:57.3]} 16. Rfd1 {[%clk 0:01:12.9]} 16... Rad8 {[%clk
0:01:56.2]} 17. Bc4 {[%clk 0:01:12.3]} 17... Bg5 {[%clk 0:01:50.7]} 18. Qe2
{[%clk 0:01:08.1]} 18... Qf6 {[%clk 0:01:34.8]} 19. Bd5 {[%clk 0:00:53.1]} 19...
Bxd5 {[%clk 0:01:33.5]} 20. Rxd5 {[%clk 0:00:47.6]} 20... Rxd5 {[%clk 0:01:31]}
21. exd5 {[%clk 0:00:48.5]} 21... Qxf5 {[%clk 0:01:30.7]} 22. Qxe5 {[%clk
0:00:47.7]} 22... Qxe5 {[%clk 0:01:30.2]} 23. Nxe5 {[%clk 0:00:47.3]} 23... Re8
{[%clk 0:01:25.3]} 24. Nf3 {[%clk 0:00:42.5]} 24... Bf6 {[%clk 0:01:23.8]} 25.
Kf2 {[%clk 0:00:39.9]} 25... Kf8 {[%clk 0:01:22.5]} 26. Rd1 {[%clk 0:00:34.9]}
26... Rd8 {[%clk 0:01:22.2]} 27. Rd2 {[%clk 0:00:29.1]} 27... c4 {[%clk
0:01:12.3]} 28. Ne1 {[%clk 0:00:17.6]} 28... Ke7 {[%clk 0:01:08.1]} 29. Nc2
{[%clk 0:00:17]} 29... Kd7 {[%clk 0:01:00.2]} 30. Ne3 {[%clk 0:00:16.2]} 30...
Bg5 {[%clk 0:01:00]} 31. Rd4 {[%clk 0:00:15.2]} 31... Bxe3+ {[%clk 0:00:59.7]}
32. Kxe3 {[%clk 0:00:15.7]} 32... b5 {[%clk 0:01:00.3]} 33. a4 {[%clk
0:00:14.3]} 33... a6 {[%clk 0:00:59.7]} 34. axb5 {[%clk 0:00:14.1]} 34... axb5
{[%clk 0:01:00.6]} 35. Rf4 {[%clk 0:00:14]} 35... f6 {[%clk 0:00:59.3]} 36. Kd4
{[%clk 0:00:13.8]} 36... Kd6 {[%clk 0:00:58.8]} 37. Re4 {[%clk 0:00:13.9]} 37...
Rb8 {[%clk 0:00:32.2]} 38. Re6+ {[%clk 0:00:13.3]} 38... Kd7 {[%clk 0:00:32.6]}
39. Ra6 {[%clk 0:00:12.6]} 39... g6 {[%clk 0:00:19.6]} 40. Rxf6 {[%clk
0:00:11.4]} 40... Re8 {[%clk 0:00:13.1]} 41. Rf7+ {[%clk 0:00:09.2]} 41... Kd6
{[%clk 0:00:13]} 42. Rf6+ {[%clk 0:00:09.2]} 42... Kd7 {[%clk 0:00:12.7]} 43.
Rb6 {[%clk 0:00:09.2]} 43... Re2 {[%clk 0:00:11.3]} 44. Rxb5 {[%clk 0:00:07.6]}
44... Rxg2 {[%clk 0:00:11.9]} 45. Kxc4 {[%clk 0:00:07.2]} 45... Rxh2 {[%clk
0:00:12]} 46. Kc5 {[%clk 0:00:07.4]} 46... g5 {[%clk 0:00:10.8]} 47. Rb7+ {[%clk
0:00:06.9]} 47... Kc8 {[%clk 0:00:11.1]} 48. Kc6 {[%clk 0:00:06.5]} 48... Rh6+
{[%clk 0:00:11.1]} 49. d6 {[%clk 0:00:05.2]} 49... Rxd6+ {[%clk 0:00:11.1]} 50.
Kxd6 {[%clk 0:00:05.2]} 50... Kxb7 {[%clk 0:00:12]} 51. Ke5 {[%clk 0:00:05.2]}
51... h5 {[%clk 0:00:11.9]} 52. Kf5 {[%clk 0:00:04.3]} 52... g4 {[%clk
0:00:11.4]} 53. Kf4 {[%clk 0:00:04.1]} 53... Kc6 {[%clk 0:00:11.8]} 54. b4
{[%clk 0:00:03.7]} 54... Kb5 {[%clk 0:00:11]} 55. Kg3 {[%clk 0:00:04.1]} 55...
Kc4 {[%clk 0:00:11.3]} 56. Kh4 {[%clk 0:00:04.2]} 56... Kd5 {[%clk 0:00:10.8]}
57. Kg3 {[%clk 0:00:04.3]} 57... Ke5 {[%clk 0:00:11]} 58. b5 {[%clk 0:00:04.4]}
58... Kd5 {[%clk 0:00:08.8]} 59. c4+ {[%clk 0:00:04.4]} 59... Kc5 {[%clk
0:00:09.1]} 60. Kh4 {[%clk 0:00:04.6]} 60... Kd6 {[%clk 0:00:08.8]} 61. Kg3
{[%clk 0:00:04.8]} 61... Kc5 {[%clk 0:00:08.9]} 62. Kh4 {[%clk 0:00:04.8]} 62...
Kb6 {[%clk 0:00:09.1]} 63. Kg3 {[%clk 0:00:05]} 63... Kc5 {[%clk 0:00:09.7]}
1/2-1/2